fUSD/lending_fUSD_20250308
["ID","MTS","AMOUNT","RATE_DAILY","PERIOD"]
[355628890,1741410529514,-4742.29399112,8.088e-05,2]
[355628891,1741410529601,-1631.12703464,8.088e-05,2]
[355628899,1741410631783,-978613.90404894,8.088e-05,2]
[355628900,1741410631795,-770.51684207,8.088e-05,2]
[355628901,1741410631807,-454.146,8.088e-05,2]
[355628902,1741410631838,-433.70568007,8.088e-05,2]
[355629121,1741410639741,-404.760008,8.088e-05,2]
[355629122,1741410639752,-434.21813517,8.088e-05,2]
[355629123,1741410639958,-1188.0384,8.088e-05,2]
[355629143,1741410643630,-81377.36652935,8.088e-05,2]
[355629157,1741410645934,-540.99999999,8.088e-05,2]
[355629159,1741410754199,-159.0,8.088e-05,3]
[355629160,1741410754235,-156.0,8.088e-05,3]
[355629161,1741410772935,275.8033,7.988e-05,2]
[355629162,1741410775151,99999.999999,8e-05,2]
[355629163,1741410781707,-150.0,8.087e-05,2]
[355629164,1741410781742,-569.34491587,8.087e-05,2]
[355629165,1741410781776,-12005.45531512,8.088e-05,2]
[355629166,1741410995075,429.82,7.38e-05,2]
[355629167,1741411110186,952.992,7.926e-05,2]
[355629168,1741411110226,188.453,7.926e-05,2]
[355629169,1741411192362,500.0,7.988e-05,2]
[355629170,1741411328298,171.31,7.605e-05,2]
[355629171,1741411333356,155.5197,7.988e-05,2]
[355629172,1741411431165,278.52,7.379e-05,2]
[355629173,1741411481242,151.46,7.38e-05,2]
[355629174,1741411481299,151.46,7.405e-05,2]
[355629175,1741411481349,151.46,7.429e-05,2]
[355629176,1741411481489,151.46,7.454e-05,2]
[355629177,1741411481572,151.46,7.478e-05,2]
[355629178,1741411481775,151.46,7.503e-05,2]
[355629179,1741411481986,151.46,7.528e-05,2]
[355629180,1741411482202,151.46,7.552e-05,2]
[355629181,1741411482388,151.46,7.577e-05,2]
[355629182,1741411482605,151.46,7.601e-05,2]
[355629183,1741411482818,151.46,7.626e-05,2]
[355629184,1741411483036,151.46,7.651e-05,2]
[355629185,1741411483218,151.46,7.675e-05,2]
[355629186,1741411483414,151.46,7.7e-05,2]
[355629187,1741411483613,151.46,7.724e-05,2]
[355629188,1741411483798,151.46,7.749e-05,2]
[355629189,1741411484048,151.46,7.774e-05,2]
[355629190,1741411484183,151.46,7.798e-05,2]
[355629191,1741411484402,151.46,7.823e-05,2]
[355629192,1741411553880,2285.41,7.285e-05,2]
[355629193,1741411571797,5621.7265,7.988e-05,2]
[355629214,1741411731376,1809.72,0.000165,60]
[355629239,1741411832626,-620.0,8.087e-05,2]
[355629241,1741411837942,-465.06235263,8.087e-05,2]
[355629242,1741411837954,-1085.06235264,8.087e-05,2]
[355629243,1741411837965,-571.35174392,8.087e-05,2]
[355629244,1741411837975,-14713.74310154,8.088e-05,2]
[355629248,1741411840184,-921.64212514,8.088e-05,2]
[355629256,1741411843193,-497.06061393,8.088e-05,2]
[355629272,1741411843933,-342703.72073653,8.088e-05,2]
[355629273,1741411846085,-6136.86973118,8.088e-05,2]
[355629274,1741411846096,-9229.6,8.088e-05,2]
[355629280,1741411846621,-301196.47455899,8.088e-05,2]
[355629281,1741411846644,-2104.12295999,8.088e-05,2]
[355629282,1741411978193,896.97160476,8e-05,2]
[355629284,1741412300903,164.08,7.241e-05,2]
[355629285,1741412310453,950.239,7.926e-05,2]
[355629286,1741412355456,1431.95,7.235e-05,2]
[355629287,1741412378470,173.74,7.452e-05,2]
[355629288,1741412422983,1897.0,8e-05,2]
[355629289,1741412499887,150.0,8.011e-05,2]
[355629290,1741412624395,315.22778718,8.039e-05,2]
[355629292,1741412740152,150.0,8.027e-05,2]
[355629293,1741412740196,150.0,8.045e-05,2]
[355629294,1741412740235,150.0,8.079e-05,2]
[355629295,1741412740296,150.0,7.952e-05,2]
[355629296,1741412740577,150.0,7.948e-05,2]
[355629297,1741412740685,245.15318133,8.031e-05,2]
[355629298,1741412782974,176.51,7.19e-05,2]
[355629299,1741412783181,176.51,7.406e-05,2]
[355629300,1741412783396,176.51,7.621e-05,2]
[355629301,1741412800023,150.0,7.925e-05,2]
[355629302,1741412800071,150.0,7.98e-05,2]
[355629308,1741412838816,200.0,7.7e-05,2]
[355629317,1741412840865,500.0,7.8e-05,2]
[355629318,1741412842949,700.0,7.9e-05,2]
[355629319,1741412843087,200.0,7.21e-05,2]
[355629320,1741412845046,1000.0,8e-05,2]
[355629327,1741412859917,150.0,8.045e-05,2]
[355629328,1741412860030,150.0,7.934e-05,2]
[355629329,1741412860107,150.0,8.072e-05,2]
[355629330,1741412860167,150.0,7.898e-05,2]
[355629331,1741412860227,150.0,8.018e-05,2]
[355629332,1741412860287,150.0,8.081e-05,2]
[355629333,1741412860323,150.0,8.08e-05,2]
[355629334,1741412860365,150.0,7.948e-05,2]
[355629335,1741412860402,150.0,8.004e-05,2]
[355629336,1741412860439,150.0,8.023e-05,2]
[355629337,1741412860491,150.0,7.956e-05,2]
[355629338,1741412860540,150.0,8.033e-05,2]
[355629339,1741412860591,150.0,8.003e-05,2]
[355629340,1741412919864,23900.0,7.291e-05,2]
[355629359,1741413032165,-500.0,8.087e-05,2]
[355629360,1741413032176,-500.0,8.087e-05,2]
[355629361,1741413032186,-500.0,8.087e-05,2]
[355629362,1741413032195,-517.73915598,8.087e-05,2]
[355629363,1741413032205,-10077.08774371,8.088e-05,2]
[355629364,1741413032227,-4521.19088233,8.088e-05,2]
[355629365,1741413032239,-1604.68127046,8.088e-05,2]
[355629366,1741413032287,-562.92208829,8.088e-05,2]
[355629367,1741413032354,-1834.05419453,8.088e-05,2]
[355629368,1741413032476,-4633.28054186,8.088e-05,2]
[355629416,1741413038113,-11834.57106513,8.088e-05,2]
[355629428,1741413038341,-38578.93886257,8.088e-05,2]
[355629434,1741413040119,-362.3555628,8.088e-05,2]
[355629435,1741413040147,-21592.16338633,8.088e-05,2]
[355629436,1741413040159,-5837.0,8.088e-05,2]
[355629437,1741413040171,-2101.90480967,8.088e-05,2]
[355629438,1741413040310,-20377.23271102,8.088e-05,2]
[355629439,1741413040322,-3532.35172448,8.088e-05,2]
[355629440,1741413040334,-275.4418496,8.088e-05,2]
[355629441,1741413040348,-1552.59788042,8.088e-05,2]
[355629442,1741413040360,-1728.77262585,8.088e-05,2]
[355629443,1741413040372,-493.98587737,8.088e-05,2]
[355629444,1741413040487,-372.50946649,8.088e-05,2]
[355629445,1741413040499,-1476.29675264,8.088e-05,2]
[355629446,1741413040511,-48643.73692137,8.088e-05,2]
[355629447,1741413040547,-266.13355653,8.088e-05,2]
[355629448,1741413040574,-451272.91782197,8.088e-05,2]
[355629449,1741413040583,-550.0,8.088e-05,2]
[355629450,1741413040594,-150.0,8.088e-05,2]
[355629451,1741413040603,-1000.0,8.088e-05,2]
[355629452,1741413040613,-159.0,8.088e-05,3]
[355629453,1741413040623,-167.72653155,8.088e-05,2]
[355629454,1741413040633,-150.0,8.091e-05,2]
[355629455,1741413040642,-150.0,8.11e-05,2]
[355629456,1741413040652,-150.0,8.117e-05,2]
[355629457,1741413040661,-150.0,8.118e-05,2]
[355629458,1741413040672,-150.0,8.127e-05,2]
[355629459,1741413040682,-1000.0,8.144e-05,2]
[355629460,1741413040692,-150.0,8.174e-05,2]
[355629461,1741413040702,-171.11392952,8.176e-05,2]
[355629462,1741413040712,-4797.31,8.176e-05,2]
[355629463,1741413040721,-1502.796253,8.178e-05,2]
[355629464,1741413040731,-150.0,8.185e-05,2]
[355629466,1741413040740,-35154.70041714,8.19e-05,2]
[355629467,1741413040765,-2090.40897658,8.19e-05,2]
[355629468,1741413040777,-87712.52131275,8.19e-05,2]
[355629474,1741413044123,-457.46955249,8.19e-05,2]
[355629490,1741413045260,-7513.49999951,8.19e-05,2]
[355629491,1741413045272,-116102.46837912,8.19e-05,2]
[355629492,1741413045281,-150.0,8.194e-05,2]
[355629493,1741413045291,-150.0,8.196e-05,2]
[355629494,1741413045304,-150.0,8.197e-05,2]
[355629495,1741413045314,-150.0,8.213e-05,2]
[355629496,1741413045325,-150.0,8.213e-05,2]
[355629497,1741413045335,-1289.0,8.218e-05,2]
[355629498,1741413045346,-187740.58801899,8.218e-05,2]
[355629499,1741413045356,-173.048948,8.219e-05,2]
[355629500,1741413045366,-158.922512,8.219e-05,2]
[355629501,1741413045377,-154.096799,8.219e-05,2]
[355629502,1741413045387,-160.472568,8.219e-05,2]
[355629503,1741413045396,-160.347871,8.219e-05,2]
[355629504,1741413045407,-154.734663,8.219e-05,2]
[355629505,1741413045416,-165.838573,8.219e-05,2]
[355629506,1741413045425,-152.30074,8.219e-05,2]
[355629507,1741413045434,-517.65173091,8.219e-05,2]
[355629508,1741413045444,-500.0,8.219e-05,2]
[355629509,1741413045453,-500.0,8.219e-05,2]
[355629510,1741413045462,-500.0,8.219e-05,2]
[355629511,1741413045472,-574.16038725,8.219e-05,2]
[355629512,1741413045481,-500.0,8.219e-05,2]
[355629513,1741413045491,-500.0,8.219e-05,2]
[355629514,1741413045500,-500.0,8.219e-05,2]
[355629515,1741413045510,-500.0,8.219e-05,2]
[355629516,1741413045519,-500.0,8.219e-05,2]
[355629517,1741413045529,-532.8,8.219e-05,2]
[355629518,1741413045539,-500.0,8.219e-05,2]
[355629519,1741413045549,-500.0,8.219e-05,2]
[355629520,1741413045558,-500.0,8.219e-05,2]
[355629521,1741413045568,-500.0,8.219e-05,2]
[355629522,1741413045578,-500.0,8.219e-05,2]
[355629523,1741413045588,-500.0,8.219e-05,2]
[355629524,1741413045598,-1040.22,8.219e-05,2]
[355629525,1741413045607,-500.0,8.219e-05,2]
[355629526,1741413045617,-500.0,8.219e-05,2]
[355629527,1741413045627,-500.0,8.219e-05,2]
[355629528,1741413045637,-500.0,8.219e-05,2]
[355629529,1741413045646,-500.0,8.219e-05,2]
[355629530,1741413045655,-500.0,8.219e-05,2]
[355629531,1741413045665,-500.0,8.219e-05,2]
[355629532,1741413045675,-500.0,8.219e-05,2]
[355629533,1741413045683,-500.0,8.219e-05,2]
[355629534,1741413045694,-500.0,8.219e-05,2]
[355629535,1741413045703,-500.0,8.219e-05,2]
[355629536,1741413045713,-500.0,8.219e-05,2]
[355629537,1741413045722,-643.86080156,8.219e-05,2]
[355629538,1741413045732,-500.0,8.219e-05,2]
[355629539,1741413045741,-446.35099325,8.219e-05,2]
[355629540,1741413045751,-500.0,8.219e-05,2]
[355629541,1741413045761,-500.0,8.219e-05,2]
[355629542,1741413045770,-500.0,8.219e-05,2]
[355629543,1741413045780,-511.55559331,8.219e-05,2]
[355629544,1741413045789,-500.0,8.219e-05,2]
[355629545,1741413045799,-500.0,8.219e-05,2]
[355629546,1741413045809,-524.03003039,8.219e-05,2]
[355629547,1741413045818,-500.0,8.219e-05,2]
[355629548,1741413045827,-518.01726632,8.219e-05,2]
[355629549,1741413045837,-1135.24,8.219e-05,2]
[355629550,1741413045847,-500.0,8.219e-05,2]
[355629551,1741413045856,-1069.11,8.219e-05,2]
[355629552,1741413045865,-518.59483642,8.219e-05,2]
[355629553,1741413045875,-500.0,8.219e-05,2]
[355629554,1741413045884,-500.0,8.219e-05,2]
[355629556,1741413045894,-1696.51,8.219e-05,2]
[355629557,1741413045903,-500.0,8.219e-05,2]
[355629558,1741413045912,-500.0,8.219e-05,2]
[355629559,1741413045921,-533.49,8.219e-05,2]
[355629560,1741413045931,-1306.91,8.219e-05,2]
[355629561,1741413045940,-500.0,8.219e-05,2]
[355629562,1741413045949,-1277.66,8.219e-05,2]
[355629563,1741413045959,-500.0,8.219e-05,2]
[355629564,1741413045968,-1051.3,8.219e-05,2]
[355629565,1741413045977,-500.0,8.219e-05,2]
[355629566,1741413045986,-500.0,8.219e-05,2]
[355629567,1741413045996,-500.0,8.219e-05,2]
[355629568,1741413046005,-144.44002501,8.219e-05,2]
[355629570,1741413046021,-366.60997499,8.219e-05,2]
[355629571,1741413046030,-512.09851135,8.219e-05,2]
[355629572,1741413046039,-500.0,8.219e-05,2]
[355629573,1741413046049,-520.99786159,8.219e-05,2]
[355629574,1741413046059,-500.0,8.219e-05,2]
[355629575,1741413046068,-500.0,8.219e-05,2]
[355629576,1741413046077,-1118.62,8.219e-05,2]
[355629577,1741413046086,-500.0,8.219e-05,2]
[355629578,1741413046095,-835.28,8.219e-05,2]
[355629579,1741413046104,-500.0,8.219e-05,2]
[355629580,1741413046114,-500.0,8.219e-05,2]
[355629581,1741413046123,-500.0,8.219e-05,2]
[355629582,1741413046132,-500.0,8.219e-05,2]
[355629583,1741413046141,-500.0,8.219e-05,2]
[355629584,1741413046151,-500.0,8.219e-05,2]
[355629585,1741413046160,-500.0,8.219e-05,2]
[355629586,1741413046169,-369.79925369,8.219e-05,2]
[355629587,1741413046179,-1142.64,8.219e-05,2]
[355629588,1741413046189,-107.64442173,8.219e-05,2]
[355629589,1741413046201,-392.35557827,8.219e-05,2]
[355629590,1741413046211,-922.55,8.219e-05,2]
[355629591,1741413046220,-500.0,8.219e-05,2]
[355629592,1741413046230,-525.46881044,8.219e-05,2]
[355629593,1741413046239,-985.26,8.219e-05,2]
[355629594,1741413046248,-1330.43,8.219e-05,2]
[355629595,1741413046258,-500.0,8.219e-05,2]
[355629596,1741413046268,-500.0,8.219e-05,2]
[355629597,1741413046277,-500.0,8.219e-05,2]
[355629598,1741413046287,-500.0,8.219e-05,2]
[355629599,1741413046299,-1283.47,8.219e-05,2]
[355629600,1741413046308,-1260.09,8.219e-05,2]
[355629601,1741413046318,-500.0,8.219e-05,2]
[355629602,1741413046327,-500.0,8.219e-05,2]
[355629603,1741413046337,-500.0,8.219e-05,2]
[355629604,1741413046347,-500.0,8.219e-05,2]
[355629605,1741413046356,-500.0,8.219e-05,2]
[355629606,1741413046366,-500.0,8.219e-05,2]
[355629607,1741413046375,-527.27,8.219e-05,2]
[355629608,1741413046386,-500.0,8.219e-05,2]
[355629609,1741413046395,-1099.65,8.219e-05,2]
[355629610,1741413046404,-1491.56,8.219e-05,2]
[355629611,1741413046414,-971.87,8.219e-05,2]
[355629612,1741413046423,-606.34067879,8.219e-05,2]
[355629613,1741413046432,-500.0,8.219e-05,2]
[355629614,1741413046442,-500.0,8.219e-05,2]
[355629615,1741413046451,-507.25779418,8.219e-05,2]
[355629616,1741413046461,-1597.7,8.219e-05,2]
[355629617,1741413046470,-1239.7,8.219e-05,2]
[355629618,1741413046479,-503.42529511,8.219e-05,2]
[355629619,1741413046489,-767.95,8.219e-05,2]
[355629620,1741413046498,-500.0,8.219e-05,2]
[355629621,1741413046507,-1529.86,8.219e-05,2]
[355629623,1741413046517,-500.0,8.219e-05,2]
[355629624,1741413046526,-500.0,8.219e-05,2]
[355629625,1741413046536,-517.34707657,8.219e-05,2]
[355629626,1741413046545,-700.63,8.219e-05,2]
[355629627,1741413046555,-503.43661815,8.219e-05,2]
[355629628,1741413046564,-531.77,8.219e-05,2]
[355629629,1741413046574,-500.0,8.219e-05,2]
[355629630,1741413046583,-578.5,8.219e-05,2]
[355629631,1741413046592,-1666.79,8.219e-05,2]
[355629632,1741413046601,-500.0,8.219e-05,2]
[355629633,1741413046611,-500.0,8.219e-05,2]
[355629634,1741413046620,-553.35722485,8.219e-05,2]
[355629635,1741413046629,-500.0,8.219e-05,2]
[355629636,1741413046639,-509.06312836,8.219e-05,2]
[355629637,1741413046648,-557.34322417,8.219e-05,2]
[355629638,1741413046657,-500.0,8.219e-05,2]
[355629639,1741413046667,-500.0,8.219e-05,2]
[355629640,1741413046676,-1897.27,8.219e-05,2]
[355629641,1741413046686,-513.37434523,8.219e-05,2]
[355629642,1741413046695,-273.00008377,8.219e-05,2]
[355629643,1741413046704,-740.08,8.219e-05,2]
[355629644,1741413046714,-500.0,8.219e-05,2]
[355629645,1741413046723,-500.0,8.219e-05,2]
[355629646,1741413046732,-500.0,8.219e-05,2]
[355629647,1741413046742,-517.34545024,8.219e-05,2]
[355629648,1741413046752,-624.65,8.219e-05,2]
[355629649,1741413046762,-500.0,8.219e-05,2]
[355629650,1741413046771,-500.0,8.219e-05,2]
[355629651,1741413046781,-500.0,8.219e-05,2]
[355629652,1741413046790,-367.6398687,8.219e-05,2]
[355629653,1741413046799,-577.18,8.219e-05,2]
[355629654,1741413046809,-1608.41,8.219e-05,2]
[355629655,1741413046818,-943.16899699,8.219e-05,2]
[355629656,1741413046867,-467.31100301,8.219e-05,2]
[355629657,1741413046876,-500.0,8.219e-05,2]
[355629658,1741413046886,-500.0,8.219e-05,2]
[355629659,1741413046895,-500.0,8.219e-05,2]
[355629660,1741413046905,-170.50150985,8.219e-05,2]
[355629661,1741413046917,-254.39513532,8.219e-05,2]
[355629662,1741413047456,-587.20335483,8.219e-05,2]
[355629663,1741413047466,-21.63197588,8.219e-05,2]
[355629664,1741413059139,1000.0,7.958e-05,2]
[355629665,1741413059588,1000.0,8.03e-05,2]
[355629667,1741413457382,334.64981997,8.024e-05,2]
[355629668,1741413510862,989.57,8.055e-05,2]
[355629669,1741413510906,170.921,8.055e-05,2]
[355629670,1741413697422,1000.0,7.945e-05,2]
[355629671,1741413712440,1159.68,7.482e-05,2]
[355629672,1741413748645,445.19,7.521e-05,2]
[355629673,1741413822624,164.23,7.491e-05,2]
[355629674,1741413822836,164.23,7.555e-05,2]
[355629675,1741413823401,164.23,7.619e-05,2]
[355629676,1741413823518,164.23,7.683e-05,2]
[355629677,1741413823676,164.23,7.747e-05,2]
[355629678,1741413824097,164.23,7.811e-05,2]
[355629679,1741413824333,164.23,7.876e-05,2]
[355629680,1741413824540,164.23,7.94e-05,2]
[355629707,1741414051812,17221.33,7.504e-05,2]
[355629708,1741414120102,150.0,8.01e-05,2]
[355629709,1741414120161,150.0,7.95e-05,2]
[355629710,1741414120219,150.0,8.014e-05,2]
[355629717,1741414232600,-1236.0,8.1e-05,2]
[355629718,1741414232611,-2004.0,8.1e-05,2]
[355629719,1741414232623,-150.0,8.103e-05,2]
[355629720,1741414232633,-1000.0,8.105e-05,2]
[355629721,1741414232643,-500.0,8.218e-05,2]
[355629722,1741414232653,-238.02242776,8.218e-05,2]
[355629723,1741414232663,-500.0,8.218e-05,2]
[355629724,1741414232672,-412.41740918,8.218e-05,2]
[355629725,1741414232684,-500.0,8.218e-05,2]
[355629726,1741414232693,-365.7548916,8.218e-05,2]
[355629727,1741414232703,-550.0,8.218e-05,2]
[355629728,1741414232716,-1362.0,8.219e-05,2]
[355629729,1741414232726,-482.99498147,8.219e-05,2]
[355629730,1741414232736,-500.0,8.219e-05,2]
[355629731,1741414232746,-500.0,8.219e-05,2]
[355629732,1741414232758,-500.0,8.219e-05,2]
[355629733,1741414232768,-732.43,8.219e-05,2]
[355629734,1741414232778,-500.0,8.219e-05,2]
[355629735,1741414232789,-500.0,8.219e-05,2]
[355629736,1741414232798,-1372.55,8.219e-05,2]
[355629737,1741414232808,-500.0,8.219e-05,2]
[355629738,1741414232817,-824.2,8.219e-05,2]
[355629739,1741414232827,-500.0,8.219e-05,2]
[355629740,1741414232837,-494.60937822,8.219e-05,2]
[355629741,1741414232847,-500.0,8.219e-05,2]
[355629742,1741414232856,-573.96,8.219e-05,2]
[355629743,1741414232865,-472.67169169,8.219e-05,2]
[355629744,1741414232875,-500.0,8.219e-05,2]
[355629745,1741414232884,-1278.32,8.219e-05,2]
[355629746,1741414232894,-620.37768285,8.219e-05,2]
[355629750,1741414238445,-434.99049652,8.219e-05,2]
[355629751,1741414240401,-752.73089937,8.219e-05,2]
[355629808,1741414245081,-37.27860411,8.219e-05,2]
[355629809,1741414245090,-370.38231715,8.219e-05,2]
[355629810,1741414245100,-500.0,8.219e-05,2]
[355629811,1741414245109,-500.0,8.219e-05,2]
[355629812,1741414245119,-500.0,8.219e-05,2]
[355629813,1741414245129,-1464.46,8.219e-05,2]
[355629814,1741414245139,-512.06144556,8.219e-05,2]
[355629815,1741414245148,-503.90259313,8.219e-05,2]
[355629816,1741414245158,-981.65,8.219e-05,2]
[355629817,1741414245167,-500.0,8.219e-05,2]
[355629818,1741414245177,-516.95702602,8.219e-05,2]
[355629819,1741414245187,-500.0,8.219e-05,2]
[355629820,1741414245196,-500.0,8.219e-05,2]
[355629821,1741414245206,-864.15,8.219e-05,2]
[355629822,1741414245215,-900.66,8.219e-05,2]
[355629823,1741414245224,-500.0,8.219e-05,2]
[355629824,1741414245233,-508.18956348,8.219e-05,2]
[355629825,1741414245242,-1591.26,8.219e-05,2]
[355629826,1741414245252,-1493.47,8.219e-05,2]
[355629827,1741414245261,-996.39,8.219e-05,2]
[355629828,1741414245270,-1078.36,8.219e-05,2]
[355629829,1741414245279,-500.0,8.219e-05,2]
[355629830,1741414245289,-500.0,8.219e-05,2]
[355629831,1741414245298,-500.0,8.219e-05,2]
[355629832,1741414245308,-500.0,8.219e-05,2]
[355629833,1741414245317,-500.0,8.219e-05,2]
[355629834,1741414245327,-500.0,8.219e-05,2]
[355629835,1741414245336,-833.6,8.219e-05,2]
[355629836,1741414245345,-266.459012,8.219e-05,2]
[355629837,1741414245354,-839.6,8.219e-05,2]
[355629838,1741414245363,-507.49554583,8.219e-05,2]
[355629839,1741414245372,-500.0,8.219e-05,2]
[355629840,1741414245383,-500.0,8.219e-05,2]
[355629841,1741414245393,-500.0,8.219e-05,2]
[355629842,1741414245402,-500.0,8.219e-05,2]
[355629843,1741414245412,-513.84717294,8.219e-05,2]
[355629844,1741414245421,-500.0,8.219e-05,2]
[355629845,1741414245431,-500.0,8.219e-05,2]
[355629846,1741414245440,-500.0,8.219e-05,2]
[355629847,1741414245450,-565.19208574,8.219e-05,2]
[355629848,1741414245459,-500.0,8.219e-05,2]
[355629849,1741414245469,-500.0,8.219e-05,2]
[355629850,1741414245478,-539.20026127,8.219e-05,2]
[355629851,1741414245488,-500.0,8.219e-05,2]
[355629852,1741414245497,-515.53669852,8.219e-05,2]
[355629853,1741414245506,-500.0,8.219e-05,2]
[355629854,1741414245515,-510.73752316,8.219e-05,2]
[355629855,1741414245525,-516.05333678,8.219e-05,2]
[355629856,1741414245534,-500.0,8.219e-05,2]
[355629857,1741414245544,-509.27503007,8.219e-05,2]
[355629858,1741414245553,-500.0,8.219e-05,2]
[355629859,1741414245562,-500.0,8.219e-05,2]
[355629860,1741414245572,-500.0,8.219e-05,2]
[355629861,1741414245582,-1553.23,8.219e-05,2]
[355629862,1741414245591,-500.0,8.219e-05,2]
[355629863,1741414245600,-628.19025217,8.219e-05,2]
[355629864,1741414245610,-607.08222227,8.219e-05,2]
[355629865,1741414245619,-500.0,8.219e-05,2]
[355629866,1741414245629,-500.0,8.219e-05,2]
[355629867,1741414245638,-500.0,8.219e-05,2]
[355629868,1741414245647,-582.07,8.219e-05,2]
[355629869,1741414245657,-553.38335326,8.219e-05,2]
[355629870,1741414245666,-500.0,8.219e-05,2]
[355629871,1741414245676,-500.0,8.219e-05,2]
[355629872,1741414245685,-500.0,8.219e-05,2]
[355629873,1741414245694,-507.31721852,8.219e-05,2]
[355629874,1741414245703,-856.22,8.219e-05,2]
[355629875,1741414245714,-509.53944129,8.219e-05,2]
[355629876,1741414245725,-500.0,8.219e-05,2]
[355629877,1741414245734,-500.0,8.219e-05,2]
[355629878,1741414245743,-500.0,8.219e-05,2]
[355629879,1741414245753,-500.0,8.219e-05,2]
[355629880,1741414245762,-500.0,8.219e-05,2]
[355629881,1741414245772,-500.0,8.219e-05,2]
[355629882,1741414245781,-1018.53,8.219e-05,2]
[355629883,1741414245790,-500.0,8.219e-05,2]
[355629884,1741414245801,-500.0,8.219e-05,2]
[355629885,1741414245810,-500.0,8.219e-05,2]
[355629886,1741414245820,-1391.55,8.219e-05,2]
[355629887,1741414245830,-500.0,8.219e-05,2]
[355629888,1741414245840,-500.0,8.219e-05,2]
[355629889,1741414245849,-500.0,8.219e-05,2]
[355629890,1741414245858,-500.0,8.219e-05,2]
[355629891,1741414245868,-500.0,8.219e-05,2]
[355629892,1741414245881,-500.0,8.219e-05,2]
[355629893,1741414245890,-500.0,8.219e-05,2]
[355629894,1741414245900,-216.653981,8.219e-05,2]
[355629895,1741414245910,-500.0,8.219e-05,2]
[355629896,1741414245920,-500.0,8.219e-05,2]
[355629897,1741414245930,-519.15771651,8.219e-05,2]
[355629898,1741414245940,-500.0,8.219e-05,2]
[355629899,1741414245949,-500.0,8.219e-05,2]
[355629900,1741414245958,-500.0,8.219e-05,2]
[355629901,1741414245968,-500.0,8.219e-05,2]
[355629902,1741414245978,-500.0,8.219e-05,2]
[355629903,1741414245987,-354.068686,8.219e-05,2]
[355629904,1741414245997,-500.0,8.219e-05,2]
[355629905,1741414246012,-1415.1,8.219e-05,2]
[355629906,1741414246022,-1074.64,8.219e-05,2]
[355629907,1741414246033,-154.096799,8.219e-05,2]
[355629908,1741414246043,-1467.42,8.219e-05,2]
[355629909,1741414246053,-500.0,8.219e-05,2]
[355629910,1741414246063,-500.0,8.219e-05,2]
[355629911,1741414246072,-1168.89,8.219e-05,2]
[355629913,1741414246082,-500.0,8.219e-05,2]
[355629915,1741414246091,-507.44455637,8.219e-05,2]
[355629916,1741414246100,-500.0,8.219e-05,2]
[355629917,1741414246110,-546.57455911,8.219e-05,2]
[355629918,1741414246119,-500.0,8.219e-05,2]
[355629919,1741414246131,-500.0,8.219e-05,2]
[355629920,1741414246140,-667.39,8.219e-05,2]
[355629921,1741414246150,-500.0,8.219e-05,2]
[355629922,1741414246160,-500.0,8.219e-05,2]
[355629923,1741414246169,-509.57647298,8.219e-05,2]
[355629924,1741414246180,-506.96139554,8.219e-05,2]
[355629925,1741414246190,-500.0,8.219e-05,2]
[355629926,1741414246199,-500.0,8.219e-05,2]
[355629927,1741414246209,-500.0,8.219e-05,2]
[355629928,1741414246219,-590.76252148,8.219e-05,2]
[355629929,1741414246229,-500.0,8.219e-05,2]
[355629930,1741414246239,-500.0,8.219e-05,2]
[355629931,1741414246248,-500.0,8.219e-05,2]
[355629932,1741414246258,-350.0,8.219e-05,2]
[355629933,1741414246268,-1076.49,8.219e-05,2]
[355629934,1741414246278,-500.0,8.219e-05,2]
[355629935,1741414246288,-500.0,8.219e-05,2]
[355629936,1741414246298,-500.0,8.219e-05,2]
[355629937,1741414246308,-500.0,8.219e-05,2]
[355629938,1741414246317,-160.347871,8.219e-05,2]
[355629939,1741414246327,-1666.06,8.219e-05,2]
[355629940,1741414246337,-632.09893761,8.219e-05,2]
[355629941,1741414246346,-301.91598156,8.219e-05,2]
[355629942,1741414246356,-678.36,8.219e-05,2]